fUSD/lending_fUSD_20240113
["ID","MTS","AMOUNT","RATE_DAILY","PERIOD"]
[311516611,1705172547803,-500.0,0.00022126,2]
[311516612,1705172547823,-500.0,0.00022126,2]
[311516613,1705172547844,-500.0,0.00022126,2]
[311516614,1705172547864,-500.0,0.00022126,2]
[311516615,1705172548071,-318.39239097,0.00022127,2]
[311516616,1705172548094,-930.71615116,0.00022127,2]
[311516617,1705172548118,-500.0,0.00022127,2]
[311516618,1705172548140,-430.762,0.00022127,2]
[311516619,1705172548160,-725.78,0.00022128,2]
[311516620,1705172548182,-717.18,0.00022128,2]
[311516621,1705172548203,-1631.45,0.00022128,2]
[311516622,1705172548222,-499.99,0.00022128,2]
[311516623,1705172548242,-166832.92385413,0.00022128,2]
[311516624,1705172565888,631.67168294,0.00022029,2]
[311516625,1705172568413,4084.95222772,0.00022029,2]
[311516626,1705172573208,383.9779648,0.00022029,2]
[311516627,1705172573849,533.85064051,0.00022029,2]
[311516628,1705172576183,3750.7418,0.00022028,2]
[311516629,1705172577915,155.0,0.00022029,2]
[311516630,1705172587918,215.34932766,0.00022026,2]
[311516631,1705172588108,260.01326684,0.00022029,2]
[311516632,1705172591783,1000.0,0.00022086,2]
[311516633,1705172592910,215.34932764,0.00022026,2]
[311516634,1705172597898,215.34932764,0.00022026,2]
[311516635,1705172602896,215.34932764,0.00022026,2]
[311516648,1705172605344,322.89279688,0.00022029,2]
[311516649,1705172607896,215.34932764,0.00022027,2]
[311516650,1705172612889,215.34932764,0.00022027,2]
[311516651,1705172617932,215.34932764,0.00022027,2]
[311516652,1705172622903,215.34932764,0.00022027,2]
[311516653,1705172627914,215.34932764,0.00022027,2]
[311516654,1705172632898,215.34932764,0.00022027,2]
[311516655,1705172637892,215.34932764,0.00022028,2]
[311516656,1705172642901,215.34932764,0.00022028,2]
[311516657,1705172648010,215.34932764,0.00022028,2]
[311516658,1705172652957,215.34932764,0.00022028,2]
[311516659,1705172657893,215.34932764,0.00022028,2]
[311516660,1705172662892,215.34932764,0.00022028,2]
[311516661,1705172663590,202.18478343,0.00022027,2]
[311516662,1705172664058,1250.0,0.00022,3]
[311516663,1705172667921,215.34932764,0.00022029,2]
[311516664,1705172672927,215.34932764,0.00022029,2]
[311516665,1705172677922,215.34932764,0.00022029,2]
[311516666,1705172682936,215.34932764,0.00022029,2]
[311516667,1705172714093,466.37,0.0001926,2]
[311516668,1705172714314,466.37,0.00021524,2]
[311516669,1705172720631,151.0,0.00023,7]
[311516670,1705172723315,173.34217788,0.00022028,2]
[311516671,1705172757196,176.13,0.00021126,2]
[311516672,1705172758478,176.13,0.00021674,2]
[311516673,1705172762179,500.0,0.00022186,5]
[311516674,1705172762226,1000.0,0.00021162,2]
[311516675,1705172762307,500.0,0.00022186,5]
[311516676,1705172762507,500.0,0.00022186,5]
[311516677,1705172762794,500.0,0.00022186,5]
[311516678,1705172763062,500.0,0.00022186,5]
[311516679,1705172763362,226.04673414,0.00022187,5]
[311516680,1705172782128,166.776333,0.00022025,2]
[311516681,1705172785696,215.26186458,0.00022027,2]
[311516682,1705172813745,599.90809353,0.00022025,2]
[311516683,1705172828400,400.16313348,0.000221,2]
[311516684,1705172828601,236.36567632,0.00022025,2]
[311516685,1705172829209,2472.84586929,0.00021458,2]
[311516686,1705172830219,558.28754021,0.00022011,2]
[311516687,1705172830983,923.51970502,0.00021237,2]
[311516688,1705172833487,155.51,0.00021306,2]
[311516689,1705172833717,155.51,0.00021465,2]
[311516690,1705172833946,155.51,0.00021623,2]
[311516691,1705172834340,155.51,0.00021782,2]
[311516692,1705172835046,155.51,0.00021941,2]
[311516693,1705172835333,155.51,0.00022099,2]
[311516694,1705172846201,396.33652858,0.00022011,2]
[311516695,1705172852594,438.65,0.00021151,2]
[311516696,1705172861573,695.72625381,0.000221,2]
[311516698,1705172863344,295.236981,0.000221,2]
[311516703,1705172869888,160.16388351,0.00022025,2]
[311516704,1705172875135,193.48206795,0.00022025,2]
[311516705,1705172885676,177.01,0.00016928,2]
[311516706,1705172900835,509.64,0.00021355,2]
[311516707,1705172901065,509.64,0.00021566,2]
[311516708,1705172901641,509.64,0.00021777,2]
[311516709,1705172901834,509.64,0.00021989,2]
[311516710,1705172903195,1081.0,0.00021903,2]
[311516711,1705172915263,845.02,0.00021143,2]
[311516712,1705172915460,845.02,0.00021254,2]
[311516713,1705172915904,845.02,0.00021366,2]
[311516714,1705172916119,845.02,0.00021477,2]
[311516715,1705172916524,845.02,0.00021588,2]
[311516716,1705172916929,845.02,0.00021699,2]
[311516717,1705172917161,845.02,0.00021811,2]
[311516718,1705172917743,845.02,0.00021922,2]
[311516719,1705172917893,845.02,0.00022033,2]
[311516720,1705172933612,173.26470585,0.00022024,2]
[311516721,1705172948941,-732.99080091,0.00022125,4]
[311516722,1705172950471,2789.38,0.00021138,2]
[311516723,1705172953065,175.32,0.00016712,2]
[311516724,1705172999665,3543.10826265,0.00019909,5]
[311516725,1705172999688,5261.69039736,0.00019909,5]
[311516726,1705173007550,2418.63637841,0.00022022,2]
[311516730,1705173032117,-295.236981,0.00022101,2]
[311516731,1705173032126,-200.96410609,0.00022101,2]
[311516732,1705173032137,-368.17540553,0.00022101,2]
[311516733,1705173032147,-2048.57555867,0.00022101,2]
[311516734,1705173032156,-269.75080241,0.00022101,2]
[311516735,1705173032165,-3930.60839298,0.00022102,2]
[311516736,1705173032174,-232.98316316,0.00022102,2]
[311516737,1705173032183,-1135.53862274,0.00022103,2]
[311516738,1705173032192,-870.36487726,0.00022104,2]
[311516739,1705173032208,-1553.53575242,0.00022104,2]
[311516740,1705173032218,-723.29676624,0.00022104,2]
[311516741,1705173032286,-1589.76308293,0.00022104,2]
[311516742,1705173032297,-450.0,0.00022104,2]
[311516743,1705173032307,-2194.55656055,0.00022104,2]
[311516744,1705173032342,-474.7803758,0.00022104,2]
[311516745,1705173033329,-9315.869,0.00022104,2]
[311516746,1705173039324,-16554.29451304,0.00022104,2]
[311516747,1705173039334,-6643.69631383,0.00022105,2]
[311516748,1705173039343,-150.0,0.00022107,2]
[311516749,1705173039352,-403.37,0.0002211,2]
[311516750,1705173039361,-2789.38,0.00022116,2]
[311516751,1705173039372,-28712.36427815,0.00022121,2]
[311516752,1705173039381,-3001.53867376,0.00022122,2]
[311516753,1705173039390,-158.48029498,0.00022122,2]
[311516754,1705173039399,-1202.14844517,0.00022122,2]
[311516755,1705173039408,-4698.35903998,0.00022122,2]
[311516756,1705173039418,-486.39012387,0.00022122,2]
[311516757,1705173039428,-552.01600729,0.00022122,2]
[311516758,1705173039438,-404.31539088,0.00022122,2]
[311516759,1705173039448,-528.34979913,0.00022122,2]
[311516760,1705173039457,-156.12286462,0.00022122,2]
[311516761,1705173039467,-263.78766681,0.00022122,2]
[311516762,1705173039476,-336.7179586,0.00022122,2]
[311516763,1705173039486,-338.37923961,0.00022122,2]
[311516764,1705173039495,-228.34295741,0.00022122,2]
[311516765,1705173039505,-532.70124362,0.00022122,2]
[311516766,1705173039515,-500.0,0.00022122,2]
[311516767,1705173039527,-500.0,0.00022122,2]
[311516768,1705173039536,-500.0,0.00022122,2]
[311516769,1705173039741,-500.0,0.00022122,2]
[311516770,1705173039751,-500.0,0.00022122,2]
[311516771,1705173039763,-500.0,0.00022122,2]
[311516772,1705173039773,-500.0,0.00022122,2]
[311516773,1705173039782,-500.0,0.00022122,2]
[311516774,1705173039791,-500.0,0.00022122,2]
[311516775,1705173039801,-500.0,0.00022122,2]
[311516776,1705173039810,-500.0,0.00022122,2]
[311516777,1705173039819,-500.0,0.00022122,2]
[311516778,1705173039828,-500.0,0.00022122,2]
[311516779,1705173039838,-500.0,0.00022122,2]
[311516780,1705173039848,-500.0,0.00022122,2]
[311516781,1705173039857,-1149296.24549189,0.00022122,2]
[311516782,1705173039867,-1056025.25703848,0.00022123,2]
[311516783,1705173039876,-1873.84,0.00022123,2]
[311516784,1705173039885,-499.99,0.00022123,2]
[311516786,1705173039896,-600.0,0.00022123,2]
[311516788,1705173039905,-1910.77511632,0.00022123,2]
[311516790,1705173039915,-402.5122104,0.00022123,2]
[311516792,1705173039924,-500.0,0.00022123,2]
[311516794,1705173039932,-500.0,0.00022123,2]
[311516796,1705173039942,-500.0,0.00022123,2]
[311516798,1705173039951,-500.0,0.00022123,2]
[311516800,1705173039960,-500.0,0.00022123,2]
[311516802,1705173039969,-500.0,0.00022123,2]
[311516804,1705173039979,-500.0,0.00022123,2]
[311516806,1705173039988,-500.0,0.00022123,2]
[311516808,1705173039998,-500.0,0.00022123,2]
[311516810,1705173040007,-500.0,0.00022123,2]
[311516812,1705173040019,-500.0,0.00022123,2]
[311516814,1705173040028,-500.0,0.00022123,2]
[311516816,1705173040037,-500.0,0.00022123,2]
[311516818,1705173040046,-500.0,0.00022123,2]
[311516820,1705173040055,-500.0,0.00022123,2]
[311516822,1705173040064,-500.0,0.00022123,2]
[311516824,1705173040074,-500.0,0.00022123,2]
[311516826,1705173040083,-500.0,0.00022123,2]
[311516828,1705173040092,-500.0,0.00022123,2]
[311516830,1705173040101,-500.0,0.00022123,2]
[311516832,1705173040110,-326.88,0.00022123,2]
[311516834,1705173040119,-500.0,0.00022123,2]
[311516836,1705173040127,-500.0,0.00022123,2]
[311516838,1705173040137,-500.0,0.00022123,2]
[311516840,1705173040145,-500.0,0.00022123,2]
[311516842,1705173040154,-500.0,0.00022123,2]
[311516845,1705173040164,-500.0,0.00022123,2]
[311516846,1705173040174,-500.0,0.00022123,2]
[311516849,1705173040183,-500.0,0.00022123,2]
[311516850,1705173040192,-245.73,0.00022123,2]
[311516853,1705173040202,-500.0,0.00022123,2]
[311516855,1705173040210,-500.0,0.00022123,2]
[311516856,1705173040219,-500.0,0.00022123,2]
[311516859,1705173040229,-500.0,0.00022123,2]
[311516860,1705173040238,-1243.02,0.00022123,2]
[311516862,1705173040248,-1243.02,0.00022123,2]
[311516865,1705173040257,-1243.02,0.00022123,2]
[311516866,1705173040267,-1243.02,0.00022123,2]
[311516868,1705173040277,-500.0,0.00022123,2]
[311516870,1705173040286,-500.0,0.00022123,2]
[311516872,1705173040295,-500.0,0.00022123,2]
[311516874,1705173040306,-500.0,0.00022123,2]
[311516876,1705173040315,-500.0,0.00022123,2]
[311516878,1705173040325,-500.0,0.00022123,2]
[311516880,1705173040334,-500.0,0.00022123,2]
[311516883,1705173040344,-496.84,0.00022123,2]
[311516884,1705173040353,-500.0,0.00022123,2]
[311516887,1705173040362,-500.0,0.00022123,2]
[311516888,1705173040373,-500.0,0.00022123,2]
[311516890,1705173040382,-500.0,0.00022123,2]
[311516892,1705173040391,-500.0,0.00022123,2]
[311516894,1705173040400,-500.0,0.00022123,2]
[311516896,1705173040410,-500.0,0.00022123,2]
[311516898,1705173040419,-500.0,0.00022123,2]
[311516900,1705173040429,-500.0,0.00022123,2]
[311516902,1705173040438,-500.0,0.00022123,2]
[311516904,1705173040447,-500.0,0.00022123,2]
[311516906,1705173040456,-500.0,0.00022123,2]
[311516908,1705173040465,-500.0,0.00022123,2]
[311516910,1705173040474,-462.33,0.00022123,2]
[311516912,1705173040484,-500.0,0.00022123,2]
[311516915,1705173040493,-500.0,0.00022123,2]
[311516916,1705173040503,-500.0,0.00022123,2]
[311516918,1705173040513,-500.0,0.00022123,2]
[311516921,1705173040522,-288.85669046,0.00022124,2]
[311516923,1705173040532,-288.85669046,0.00022124,2]
[311516925,1705173040541,-288.85669046,0.00022124,2]
[311516926,1705173040550,-288.85669046,0.00022124,2]
[311516928,1705173040559,-288.85669046,0.00022124,2]
[311516930,1705173040568,-288.85669046,0.00022124,2]
[311516932,1705173040577,-288.85669046,0.00022124,2]
[311516934,1705173040586,-288.85669046,0.00022124,2]
[311516936,1705173040595,-288.85669046,0.00022124,2]
[311516938,1705173040604,-288.85669046,0.00022124,2]
[311516940,1705173040613,-288.85669046,0.00022124,2]
[311516942,1705173040622,-288.85669046,0.00022124,2]
[311516944,1705173040631,-288.85669046,0.00022124,2]
[311516946,1705173040640,-288.85669046,0.00022124,2]
[311516948,1705173040649,-288.85669046,0.00022124,2]
[311516950,1705173040658,-288.85669046,0.00022124,2]
[311516952,1705173040667,-288.85669046,0.00022124,2]
[311516954,1705173040678,-288.85669046,0.00022124,2]
[311516956,1705173040687,-288.85669046,0.00022124,2]
[311516958,1705173040696,-288.85669046,0.00022124,2]
[311516961,1705173040705,-288.85669046,0.00022124,2]
[311516963,1705173040715,-288.85669046,0.00022124,2]
[311516964,1705173040724,-288.85669046,0.00022124,2]
[311516965,1705173040733,-288.85669046,0.00022124,2]
[311516966,1705173040742,-288.85669046,0.00022124,2]
[311516967,1705173040751,-288.85669046,0.00022124,2]
[311516968,1705173040760,-288.85669046,0.00022124,2]
[311516969,1705173040770,-288.85669046,0.00022124,2]
[311516970,1705173040779,-288.85669046,0.00022124,2]
[311516971,1705173040788,-288.85669046,0.00022124,2]
[311516972,1705173040798,-288.85669046,0.00022124,2]
[311516973,1705173040808,-288.85669046,0.00022124,2]
[311516974,1705173040818,-288.85669046,0.00022124,2]
[311516975,1705173040828,-288.85669046,0.00022124,2]
[311516976,1705173040838,-288.85669046,0.00022124,2]
[311516977,1705173040848,-500.0,0.00022124,2]
[311516978,1705173040858,-500.0,0.00022124,2]
[311516979,1705173040869,-502.94,0.00022124,2]
[311516980,1705173040878,-500.0,0.00022124,2]
[311516981,1705173040887,-500.0,0.00022124,2]
[311516982,1705173040896,-500.0,0.00022124,2]
[311516983,1705173040906,-500.0,0.00022124,2]
[311516984,1705173040916,-1755.51,0.00022124,2]
[311516985,1705173040925,-1755.51,0.00022124,2]
[311516986,1705173040934,-1755.51,0.00022124,2]
[311516987,1705173040943,-1755.51,0.00022124,2]
[311516988,1705173040952,-500.0,0.00022124,2]
[311516989,1705173040961,-500.0,0.00022124,2]
[311516990,1705173040970,-500.0,0.00022124,2]
[311516991,1705173040979,-500.0,0.00022124,2]
[311516992,1705173040989,-500.0,0.00022124,2]
[311516993,1705173040998,-184.64,0.00022124,2]
[311516994,1705173041007,-1112.82,0.00022124,2]
[311516995,1705173041017,-1112.82,0.00022124,2]
[311516996,1705173041027,-1112.82,0.00022124,2]
[311516997,1705173041036,-1112.82,0.00022124,2]
[311516998,1705173041045,-154.84,0.00022124,2]
[311516999,1705173041054,-368.25386499,0.00022124,2]
[311517000,1705173041064,-500.0,0.00022124,2]
[311517001,1705173041073,-500.0,0.00022124,2]
[311517002,1705173041082,-500.0,0.00022124,2]
[311517003,1705173041092,-500.0,0.00022124,2]
[311517004,1705173041101,-555.84,0.00022124,2]
[311517005,1705173041110,-589.44,0.00022124,2]
[311517006,1705173041119,-500.0,0.00022124,2]
[311517007,1705173041128,-500.0,0.00022124,2]
[311517008,1705173041137,-645.3,0.00022124,2]
[311517009,1705173041147,-500.0,0.00022124,2]
[311517010,1705173041156,-500.0,0.00022124,2]
[311517011,1705173041165,-500.0,0.00022124,2]
[311517012,1705173041175,-500.0,0.00022124,2]
[311517013,1705173041184,-500.0,0.00022124,2]
[311517014,1705173041194,-500.0,0.00022124,2]
[311517015,1705173041207,-500.0,0.00022124,2]
[311517016,1705173041217,-506.4,0.00022124,2]
[311517017,1705173041227,-500.0,0.00022124,2]
[311517018,1705173041237,-500.0,0.00022124,2]
[311517019,1705173041246,-500.0,0.00022124,2]
[311517020,1705173041255,-500.0,0.00022124,2]
[311517021,1705173041265,-500.0,0.00022124,2]
[311517022,1705173041274,-1243.02,0.00022124,2]
[311517023,1705173041284,-1243.02,0.00022124,2]
[311517024,1705173041293,-1243.02,0.00022124,2]
[311517025,1705173041302,-1243.02,0.00022124,2]
[311517026,1705173041312,-1243.02,0.00022124,2]
[311517027,1705173041322,-500.0,0.00022124,2]
[311517028,1705173041331,-500.0,0.00022124,2]
[311517029,1705173041340,-500.0,0.00022124,2]
[311517030,1705173041349,-500.0,0.00022124,2]
[311517031,1705173041359,-500.0,0.00022124,2]
[311517032,1705173041371,-500.0,0.00022124,2]
[311517033,1705173041384,-500.0,0.00022124,2]
[311517034,1705173041394,-500.0,0.00022124,2]
[311517035,1705173041404,-505.51,0.00022124,2]
[311517036,1705173041414,-500.0,0.00022124,2]
[311517037,1705173041424,-500.0,0.00022124,2]
[311517038,1705173041433,-500.0,0.00022124,2]
[311517039,1705173041442,-500.0,0.00022124,2]
[311517040,1705173041452,-500.0,0.00022124,2]
[311517041,1705173041462,-500.0,0.00022124,2]
[311517042,1705173041471,-500.0,0.00022124,2]
[311517043,1705173041480,-500.0,0.00022124,2]
[311517044,1705173041490,-500.0,0.00022124,2]
[311517045,1705173041499,-500.0,0.00022124,2]
[311517046,1705173041509,-500.0,0.00022124,2]
[311517047,1705173041518,-500.0,0.00022124,2]
[311517048,1705173041527,-500.0,0.00022124,2]
[311517049,1705173041538,-500.0,0.00022124,2]
[311517050,1705173041547,-160.72539687,0.00022125,2]
[311517051,1705173041557,-172.0749087,0.00022125,2]
[311517052,1705173041566,-167.8946825,0.00022125,2]
[311517053,1705173041576,-183.31693013,0.00022125,2]
[311517054,1705173041585,-217.43053943,0.00022125,2]
[311517055,1705173041594,-155.48692746,0.00022125,2]
[311517056,1705173041603,-155.50156782,0.00022125,2]
[311517057,1705173041612,-223.63377788,0.00022125,2]
[311517058,1705173041621,-663.79809551,0.00022125,2]
[311517060,1705173041631,-265.86409049,0.00022125,2]
[311517062,1705173041640,-351.48000001,0.00022125,2]
[311517064,1705173041649,-155.08338386,0.00022125,2]
[311517065,1705173041658,-155.25826275,0.00022125,2]
[311517066,1705173041667,-561.46022541,0.00022125,2]
[311517067,1705173041676,-1043.80845818,0.00022125,2]
[311517068,1705173041686,-270.43975547,0.00022125,2]
[311517070,1705173041695,-2018.10308734,0.00022125,2]
[311517072,1705173041704,-244.02773352,0.00022125,2]
[311517073,1705173041713,-225.36472396,0.00022125,2]
[311517074,1705173041723,-1272.40788958,0.00022125,2]
[311517075,1705173041732,-236.76585008,0.00022125,2]
[311517076,1705173041741,-155.0,0.00022125,2]
[311517078,1705173041750,-650.93242009,0.00022125,2]
[311517080,1705173041759,-326.58918329,0.00022125,2]
[311517082,1705173041769,-714.63,0.00022126,2]
[311517084,1705173041778,-3141.15835728,0.00022126,2]
[311517086,1705173041787,-253.03478513,0.00022126,2]
[311517088,1705173041796,-578.97126269,0.00022126,2]
[311517090,1705173041805,-383.68557165,0.00022126,2]
[311517092,1705173041814,-184.17252999,0.00022126,2]
[311517094,1705173041822,-500.0,0.00022126,2]
[311517096,1705173041831,-500.0,0.00022126,2]
[311517098,1705173041839,-500.0,0.00022126,2]
[311517100,1705173041848,-341.88,0.00022126,2]
[311517102,1705173041857,-1755.51,0.00022126,2]
[311517104,1705173041866,-1755.51,0.00022126,2]
[311517106,1705173041875,-1755.51,0.00022126,2]
[311517108,1705173041884,-1755.51,0.00022126,2]
[311517109,1705173041893,-1755.51,0.00022126,2]
[311517112,1705173041908,-500.0,0.00022126,2]
[311517114,1705173041918,-500.0,0.00022126,2]
[311517116,1705173041927,-500.0,0.00022126,2]
[311517118,1705173041936,-500.0,0.00022126,2]
[311517120,1705173041945,-500.0,0.00022126,2]
[311517122,1705173041954,-1112.82,0.00022126,2]
[311517124,1705173041963,-1112.82,0.00022126,2]
[311517125,1705173041972,-1112.82,0.00022126,2]
[311517126,1705173041981,-1112.82,0.00022126,2]
[311517127,1705173041990,-1112.82,0.00022126,2]
[311517128,1705173041999,-500.0,0.00022126,2]
[311517130,1705173042008,-500.0,0.00022126,2]
[311517132,1705173042017,-500.0,0.00022126,2]
[311517134,1705173042026,-500.0,0.00022126,2]
[311517136,1705173042035,-500.0,0.00022126,2]
[311517138,1705173042043,-500.0,0.00022126,2]
[311517140,1705173042052,-1243.02,0.00022126,2]
[311517142,1705173042062,-500.0,0.00022126,2]
[311517144,1705173042071,-500.0,0.00022126,2]
[311517146,1705173042080,-500.0,0.00022126,2]
[311517148,1705173042088,-500.0,0.00022126,2]
[311517150,1705173042097,-500.0,0.00022126,2]
[311517151,1705173042106,-500.0,0.00022126,2]
[311517154,1705173042117,-500.0,0.00022126,2]
[311517155,1705173042126,-500.0,0.00022126,2]
[311517158,1705173042135,-500.0,0.00022126,2]
[311517159,1705173042144,-500.0,0.00022126,2]
[311517161,1705173042153,-500.0,0.00022126,2]
[311517163,1705173042162,-500.0,0.00022126,2]
[311517165,1705173042171,-500.0,0.00022126,2]
[311517167,1705173042180,-500.0,0.00022126,2]
[311517169,1705173042189,-500.0,0.00022126,2]
[311517171,1705173042199,-728.32,0.00022127,2]
[311517172,1705173042208,-288.34262207,0.00022127,2]
[311517173,1705173042217,-765.80999369,0.00022127,2]
[311517174,1705173042227,-841.40945132,0.00022127,2]
[311517175,1705173042236,-318.39239097,0.00022127,2]
[311517176,1705173042246,-2697.53270087,0.00022127,2]
[311517177,1705173042255,-500.0,0.00022127,2]
[311517178,1705173042265,-500.0,0.00022127,2]
[311517179,1705173042274,-500.0,0.00022127,2]
[311517180,1705173042283,-500.0,0.00022127,2]
[311517181,1705173042293,-500.0,0.00022127,2]
[311517182,1705173042302,-500.0,0.00022127,2]
[311517183,1705173042311,-500.0,0.00022127,2]
[311517184,1705173042321,-500.0,0.00022127,2]
[311517185,1705173042330,-500.0,0.00022127,2]
[311517186,1705173042339,-500.0,0.00022127,2]
[311517187,1705173042349,-500.0,0.00022127,2]
[311517188,1705173042358,-500.0,0.00022127,2]
[311517189,1705173042369,-500.0,0.00022127,2]
[311517190,1705173042380,-500.0,0.00022127,2]
[311517191,1705173042389,-274.42,0.00022127,2]
[311517192,1705173042398,-500.0,0.00022127,2]
[311517193,1705173042409,-500.0,0.00022127,2]
[311517194,1705173042419,-500.0,0.00022127,2]
[311517195,1705173042428,-439.89,0.00022127,2]
[311517196,1705173042437,-500.0,0.00022127,2]
[311517197,1705173042447,-500.0,0.00022127,2]
[311517198,1705173042457,-617.68,0.00022127,2]
[311517199,1705173042466,-500.0,0.00022127,2]
[311517200,1705173042475,-500.0,0.00022127,2]
[311517201,1705173042484,-500.0,0.00022127,2]
[311517202,1705173042495,-500.0,0.00022127,2]
[311517203,1705173042505,-500.0,0.00022127,2]
[311517204,1705173042515,-201.49,0.00022127,2]
[311517205,1705173042524,-500.0,0.00022127,2]
[311517206,1705173042533,-500.0,0.00022127,2]
[311517207,1705173042542,-500.0,0.00022127,2]
[311517208,1705173042551,-500.0,0.00022127,2]
[311517209,1705173042561,-500.0,0.00022127,2]
[311517210,1705173042570,-500.0,0.00022127,2]
[311517211,1705173042579,-500.0,0.00022127,2]
[311517212,1705173042589,-500.0,0.00022127,2]
[311517213,1705173042598,-500.0,0.00022127,2]
[311517214,1705173042607,-500.0,0.00022127,2]
[311517215,1705173042617,-500.0,0.00022127,2]
[311517216,1705173042626,-500.0,0.00022127,2]
[311517217,1705173042636,-1541.25,0.00022127,2]
[311517218,1705173042645,-1541.25,0.00022127,2]
[311517219,1705173042655,-1541.25,0.00022127,2]
[311517220,1705173042664,-1541.25,0.00022127,2]
[311517221,1705173042673,-500.0,0.00022127,2]
[311517222,1705173042682,-500.0,0.00022127,2]
[311517223,1705173042692,-500.0,0.00022127,2]
[311517224,1705173042701,-500.0,0.00022127,2]
[311517225,1705173042710,-500.0,0.00022127,2]
[311517226,1705173042719,-500.0,0.00022127,2]
[311517227,1705173042728,-500.0,0.00022127,2]
[311517228,1705173042737,-500.0,0.00022127,2]
[311517229,1705173042746,-500.0,0.00022127,2]
[311517230,1705173042755,-500.0,0.00022127,2]
[311517231,1705173042765,-500.0,0.00022127,2]
[311517232,1705173042774,-500.0,0.00022127,2]
[311517233,1705173042783,-500.0,0.00022127,2]
[311517234,1705173042792,-500.0,0.00022127,2]
[311517235,1705173042801,-500.0,0.00022127,2]
[311517236,1705173042810,-500.0,0.00022127,2]
[311517237,1705173042819,-500.0,0.00022127,2]
[311517238,1705173042828,-500.0,0.00022127,2]
[311517239,1705173042837,-500.0,0.00022127,2]
[311517240,1705173042846,-500.0,0.00022127,2]
[311517241,1705173042855,-500.0,0.00022127,2]
[311517242,1705173042865,-500.0,0.00022127,2]
[311517243,1705173042874,-500.0,0.00022127,2]
[311517244,1705173042885,-500.0,0.00022127,2]
[311517245,1705173042894,-500.0,0.00022127,2]
[311517246,1705173042903,-500.0,0.00022127,2]
[311517247,1705173042912,-500.0,0.00022127,2]
[311517248,1705173042921,-717.01,0.00022127,2]
[311517249,1705173042930,-717.01,0.00022127,2]
[311517250,1705173042940,-717.01,0.00022127,2]
[311517251,1705173042949,-717.01,0.00022127,2]
[311517252,1705173042958,-500.0,0.00022127,2]
[311517253,1705173042967,-500.0,0.00022127,2]
[311517254,1705173042976,-500.0,0.00022127,2]
[311517255,1705173042986,-500.0,0.00022127,2]
[311517256,1705173042995,-323.55,0.00022127,2]
[311517257,1705173043004,-500.0,0.00022127,2]
[311517258,1705173043014,-500.0,0.00022127,2]
[311517259,1705173043027,-500.0,0.00022127,2]
[311517260,1705173043035,-500.0,0.00022127,2]
[311517261,1705173043044,-500.0,0.00022127,2]
[311517262,1705173043053,-500.0,0.00022127,2]
[311517263,1705173043062,-500.0,0.00022127,2]
[311517264,1705173043071,-500.0,0.00022127,2]
[311517265,1705173043080,-500.0,0.00022127,2]
[311517266,1705173043089,-500.0,0.00022127,2]
[311517267,1705173043098,-500.0,0.00022127,2]
[311517268,1705173043107,-500.0,0.00022127,2]
[311517269,1705173043117,-244.08,0.00022127,2]
[311517270,1705173043126,-500.0,0.00022127,2]